Cogmind - Beta 17 @@@ ROGUE MODE // 2026.08.03 @ 03:50:20 Player: alice_fexa Result: Destroyed by H-88 Terminator with KE Penetrator Performance ------------- Evolutions (9) 4500 Regions Visited (12) 2400 Robots Destroyed (369) 1845 Value Destroyed (18006) 18006 Prototype IDs (23) 460 Alien Tech Used (1) 200 Bonus (20504) 20504 TOTAL SCORE: 47915 Bonus ------- Triggered High Security 500 High Alert Combat Kills 6309 Follower Combat Kills 895 Prayed to X0-1V1 5000 Major X0-1V1 Interference 6650 Entered DSFs 1000 Scanned by Researcher 500 Friendly Fire -350 Cogmind --------- Core Integrity 0/1200 Matter 242/300 Energy 1000/1000 System Corruption 25% Temperature Cool (0) Movement Core (50) Location -1/Access Parts ------- > --- POWER (3) -------- (None) > --- PROPULSION (6) --- (None) > --- UTILITY (10) ----- (None) > --- WEAPON (6) ------- (None) > --- INVENTORY (5) ---- Light Quantum Reactor Matter Compressor (250) Advanced Point Defense System HERF Cannon Heavy Scimitar of Distortion Peak State ------------ > --- POWER ------------ Light Quantum Reactor Improved Quantum Reactor Zero-point Reactor > --- PROPULSION ------- Armored Heavy Treads Improved Heavy Siege Treads Advanced Heavy Siege Treads > --- UTILITY ---------- Advanced Cooling System Huge Storage Unit Enhanced Optical Array Core Analyzer Experimental Core Analyzer Improved Kinecellerator Advanced Weapon Cycler Graphene Brace Advanced Force Field X0-1V1's Piety Tracker > --- WEAPON ----------- Heavy Machine Gun Heavy Machine Gun Heavy Machine Gun KE Penetrator KE Penetrator Railgun Railgun > --- INVENTORY -------- Light Quantum Reactor Light Quantum Reactor Light Quantum Reactor Medium Treads Armored Heavy Treads Advanced Heavy Siege Treads High-density Centrium Heavy Treads Advanced Heat Sink Advanced Heat Sink Advanced Cooling System Medium Storage Unit Matter Compressor Matter Compressor Seismic Detector Advanced Weapon Cycler Advanced Force Field Advanced Point Defense System HERF Cannon Railgun Compact Linear Accelerator Micro-nuke Launcher Heavy Scimitar of Distortion [Rating: 205] Favorites ----------- Power Improved Quantum Reactor Engine Improved Deuterium Engine Power Core Neutrino Core Reactor Improved Quantum Reactor Propulsion Light Treads Treads Light Treads Utility X0-1V1's Piety Tracker Device X0-1V1's Piety Tracker Storage Huge Storage Unit Processor Enhanced Optical Array Hackware Hacking Suite Protection Centrium Medium Armor Plating Weapon Heavy Machine Gun Energy Gun Small Laser Energy Cannon Nova Cannon Ballistic Gun Heavy Machine Gun Ballistic Cannon Compact Linear Accelerator Launcher Micro-nuke Launcher Slashing Weapon Heavy Scimitar of Distortion Piercing Weapon Makeshift Spear Build | -11 -10 -9 -8 -7 -6 -5 -5 -4 -3 -2 -2 -1 ------- Run | Yrd Mat Mat Mat Fac Fac Fac DSF Fac Res Res DSF Acc Slots Evolved 18 | . . 2 2 2 2 2 . 2 2 2 . 2 Power 1 | . . . . . . . . 1 . . . . Propulsion 4 | . . 1 1 . 1 1 . . . . . . Utility 9 | . . 1 1 1 1 1 . 1 1 2 . . Weapon 4 | . . . . 1 . . . . 1 . . 2 Parts Attached 186 | 6 12 11 29 7 18 5 10 8 25 2 3 50 Power 23 | 1 1 2 4 . 1 1 . 2 2 . 2 7 Engine 9 | 1 1 2 3 . 1 . . 1 . . . . Core 2 | . . . 1 . . 1 . . . . . . Reactor 12 | . . . . . . . . 1 2 . 2 7 Propulsion 41 | 2 . 6 13 2 4 3 1 . 4 . 1 5 Treads 41 | 2 . 6 13 2 4 3 1 . 4 . 1 5 Leg . | . . . . . . . . . . . . . Wheel . | . . . . . . . . . . . . . Hover . | . . . . . . . . . . . . . Flight . | . . . . . . . . . . . . . Utility 55 | 1 6 2 2 2 6 1 4 6 10 1 . 14 Device 36 | . 3 2 1 2 1 1 3 4 8 1 . 10 Storage 5 | 1 3 . . . 1 . . . . . . . Processor 7 | . . . 1 . 2 . . 1 1 . . 2 Hackware 2 | . . . . . . . . 1 . . . 1 Protection 5 | . . . . . 2 . 1 . 1 . . 1 Artifact . | . . . . . . . . . . . . . Weapon 67 | 2 5 1 10 3 7 . 5 . 9 1 . 24 Energy Gun 3 | 2 1 . . . . . . . . . . . Energy Cannon 8 | . . . . 1 1 . 1 . 3 1 . 1 Ballistic Gun 46 | . 3 1 7 2 4 . 3 . 5 . . 21 Ballistic Cannon 1 | . . . . . . . . . . . . 1 Launcher 7 | . 1 . 2 . 2 . 1 . . . . 1 Special Weapon . | . . . . . . . . . . . . . Impact Weapon . | . . . . . . . . . . . . . Slashing Weapon 1 | . . . . . . . . . 1 . . . Piercing Weapon 1 | . . . 1 . . . . . . . . . Special Melee Weapon . | . . . . . . . . . . . . . Unidentified Prototypes 18 | . 1 . 1 1 . . 1 . 7 . . 7 Parts Lost 66 | . . 3 7 1 1 . 1 . 2 . . 51 Power 8 | . . . 2 . . . . . . . . 6 Propulsion 10 | . . . 3 . 1 . . . . . . 6 Utility 27 | . . 2 . . . . 1 . 1 . . 23 Weapon 21 | . . 1 2 1 . . . . 1 . . 16 Highest Loss Streak 24 | . . 1 4 1 1 . 1 . 2 . . 24 To Critical Strikes . | . . . . . . . . . . . . . Average Backups 20 | 1 9 19 19 19 23 24 24 24 22 22 23 21 Power 1 | . 1 4 2 1 2 2 2 1 1 1 1 1 Propulsion 2 | . . 1 4 4 2 2 2 2 1 1 1 2 Utility 8 | . 1 3 5 7 9 10 10 11 12 11 11 11 Weapon 7 | . 5 9 6 6 8 10 9 10 7 8 9 5 Tool/Special . | . . . . . . . . . . . . . Unused Backups 57 | . 1 5 14 4 4 1 3 4 10 . 3 8 Power 11 | . . 2 5 . 2 . . . . . . 2 Propulsion 9 | . . . . . . . 1 . 6 . 2 . Utility 25 | . 1 2 5 3 1 1 1 2 3 . 1 5 Weapon 12 | . . 1 4 1 1 . 1 2 1 . . 1 Tool/Special . | . . . . . . . . . . . . . Average Slot Usage (%) 91 | . 98 97 98 99 99 98 88 88 82 85 85 86 Engine 4 | . 14 11 7 7 6 4 . . . . . . Core 1 | . . . . . . . 5 4 3 . . . Reactor 4 | . . . . . . . . 4 4 8 8 11 Treads 22 | . 27 32 31 30 32 34 21 20 14 17 16 11 Device 18 | . 12 20 15 23 18 17 12 14 17 28 26 21 Storage 6 | . 14 11 7 7 6 5 5 4 4 4 4 3 Processor 8 | . . . 7 7 12 11 10 11 13 8 8 8 Hackware 1 | . . . . . . . . 4 1 . . 1 Protection 1 | . . . . . 1 4 8 3 2 1 4 3 Ballistic Gun 20 | . 23 21 23 22 19 17 23 15 16 16 16 22 Peak Build Rating 205 | 6 23 28 42 48 71 94 115 116 155 173 179 205 Average Rating 101 | 4 11 25 36 43 63 76 107 110 139 167 174 192 On Entrance 77 | . 6 23 28 34 48 69 94 107 110 152 170 169 Avg Prop Armor Cover (%) 4 | . . . . . . . . . . 4 4 . Naked Turns 8 | . . . . . . . . . . . . 8 Heaviest Build 216 | 12 52 55 67 63 113 118 150 153 154 170 184 216 Greatest Support 263 | 40 40 66 86 86 114 196 204 204 263 263 263 236 Greatest Overweight (x) 1 | 1 1 . . . 1 . . . . . . 1 Average Overweight (x) . | . . . . . . . . . . . . . Largest Inventory Capacity 25 | 8 20 20 20 20 25 25 25 25 25 25 25 25 Average Capacity 22 | 6 11 20 20 20 24 25 25 25 25 25 25 24 Most Carried 25 | 2 18 20 20 20 25 25 25 25 25 25 25 25 Average Carried 21 | 1 9 19 19 19 23 24 24 24 24 24 24 23 Final Capacity 25 | 8 20 20 20 20 25 25 25 25 25 25 25 5 Final Carried 25 | 2 18 20 20 20 25 25 24 25 25 25 25 5 Class Distribution -------------------- 25% | Tank 23% | Scavenger-Executioner 12% | Mutant 11% | Gunner 11% | Scavenger-Mutant 10% | Scavenger-Gunner Dominant Class ---------------- Mutant | -10/Materials Scavenger-Mutant | -9/Materials Scavenger-Mutant | -8/Materials Scavenger-Gunner | -7/Factory Gunner | -6/Factory Scavenger-Gunner | -5/Factory Tank | -5/DSF Tank | -4/Factory Tank | -3/Research Tank | -2/Research Scavenger-Tank | -2/DSF Scavenger-Executioner | -1/Access Resources | -11 -10 -9 -8 -7 -6 -5 -5 -4 -3 -2 -2 -1 ----------- Run | Yrd Mat Mat Mat Fac Fac Fac DSF Fac Res Res DSF Acc Matter Collected 18184 | 260 847 862 1600 310 1230 . 790 884 2459 92 461 8389 Remotely 4832 | . . . . . . . . 410 1265 . . 3157 Salvage Created 20677 | 73 971 1178 1508 493 1287 . 1203 921 2602 92 854 9495 Parts 918 | . 45 71 83 23 49 . 38 28 114 3 24 440 Haulers Intercepted 16 | . 2 4 3 . 2 . 1 1 1 . . 2 Recyclers Shooed 16 | . 5 . 1 . 3 . . 1 4 . . 2 Parts Field Recycled . | . . . . . . . . . . . . . Retrieved Matter . | . . . . . . . . . . . . . Parts Self-Destructed . | . . . . . . . . . . . . . Prevented . | . . . . . . . . . . . . . Parts Restored . | . . . . . . . . . . . . . Kills | -11 -10 -9 -8 -7 -6 -5 -5 -4 -3 -2 -2 -1 ------- Run | Yrd Mat Mat Mat Fac Fac Fac DSF Fac Res Res DSF Acc Combat Hostiles Destroyed 272 | . 11 19 26 9 20 . 12 8 25 1 10 131 Melee 2 | . . . . . . . . . . . . 2 Guns 226 | . 11 14 18 9 14 . 5 8 18 1 10 118 Cannons 5 | . . . . . . . . . 5 . . . AOE 27 | . . 5 8 . . . 5 . . . . 9 Classes Destroyed 22 | 1 6 4 1 1 1 . 1 1 1 . . 5 Worker 23 | . 2 2 3 . . . . . 3 . . 13 Builder 11 | . 1 1 2 1 . . . . . . . 6 Hauler 16 | . 2 4 3 . 2 . 1 1 1 . . 2 Recycler 22 | 1 4 3 1 1 . . . 4 5 . . 3 Mechanic 3 | . . 1 1 . . . . . . . . 1 Operator 2 | . . . . . . . . 1 1 . . . Watcher 17 | . 3 3 1 . 1 . . . 5 . . 4 Swarmer 35 | . 3 4 3 1 1 . . . . . . 23 Saboteur 5 | . . . . . . . . . . . . 5 Grunt 105 | . 8 8 14 6 8 . 8 . 4 . 6 43 Brawler 9 | . . 2 1 . . . 1 . . . 1 4 Duelist 5 | . . 1 1 . . . . . . . 1 2 Protector 2 | . . . . . . . . . . . . 2 Sentry 26 | . . 4 7 1 3 . . 3 2 1 . 5 Specialist 6 | . . . . . 3 . . . 2 . 1 . Hunter 25 | . . . 1 . 4 . 2 2 4 . . 12 Programmer 44 | . . . . 1 2 . . 3 11 . . 27 Heavy 4 | . . . . . . . 1 . 1 . 1 1 Behemoth 1 | . . . . . . . . . 1 . . . Investigator 1 | . . . . . . . . . . . . 1 Striker 5 | . . . . . . . . . . . . 5 Executioner 2 | . . . . . . . . . . . . 2 Best Kill Streak 19 | 1 5 8 6 4 3 . 5 5 6 1 4 19 Combat Bots Only 15 | . 3 6 5 4 3 . 5 3 4 1 4 15 Max Kills in Single Turn 6 | 1 1 3 2 2 1 . 4 1 2 1 1 6 Gunslinging 2 | . . . . . . . 1 . . . . 2 Exploded 4 | . . 3 2 . . . 4 . . . . 3 Melee 1 | . . . . . . . . . . . . 1 Uniques/NPCs Destroyed . | . . . . . . . . . . . . . Combat | -11 -10 -9 -8 -7 -6 -5 -5 -4 -3 -2 -2 -1 -------- Run | Yrd Mat Mat Mat Fac Fac Fac DSF Fac Res Res DSF Acc Hostile Shots Fired 1802 | . 50 57 128 35 145 . 57 77 199 4 55 995 Missed 446 | . 11 15 36 10 53 . 11 23 54 2 10 221 Hits 1356 | . 39 42 92 25 92 . 46 54 145 2 45 774 Melee 31 | . . 4 3 . . . 2 . . . 2 20 Projectile 1325 | . 39 38 89 25 92 . 44 54 145 2 43 754 AOE 3 | . . . . . . . . . . . . 3 Critical Strikes 73 | . 1 2 6 1 5 . 5 3 5 . 6 39 Actively Blocked 21 | . . . . . . . . . 2 . 6 13 Part Disruptions 1 | . . . . . . . . . . . . 1 Damage Taken 20745 | . 416 712 1495 414 1448 . 1163 547 2429 27 864 11230 Core 1961 | . 62 90 206 53 144 . 105 10 139 . 20 1132 Absorbed by Shields 8269 | . . . . . . . . 288 803 27 538 6613 Reduced by Siege Mode 1125 | . . . . . . . 65 51 208 . 167 634 Ignored by Resistances 1602 | . . . . . . . 300 81 106 . . 1115 Regen/Repaired (Parts) 812 | . 67 170 . . . . . 575 . . . . Core Remaining (%) 84 | 100 75 84 51 88 81 . 82 98 84 . 98 . Volleys Fired 796 | 3 69 63 91 25 56 . 32 41 114 4 27 271 Largest 7 | 2 2 2 5 3 3 . 5 5 4 4 4 7 Hottest 280 | 80 90 46 112 79 86 . 144 144 208 125 125 280 Shots Fired 2721 | 6 137 123 224 73 126 . 86 118 355 11 90 1372 Gun 2551 | 6 136 118 216 72 105 . 70 114 296 10 84 1324 Cannon 129 | . . . . 1 8 . 13 . 59 1 6 41 Launcher 41 | . 1 5 8 . 13 . 3 4 . . . 7 Special . | . . . . . . . . . . . . . Kinetic 2505 | . 93 118 216 72 105 . 70 114 296 10 84 1327 Thermal 152 | 6 43 . . . . . . . 58 1 6 38 Explosive 21 | . 1 5 8 . . . . . . . . 7 Electromagnetic 43 | . . . . 1 21 . 16 4 1 . . . Robot Hit Streak 60 | 1 9 20 29 54 60 . 53 30 21 10 22 37 Robot Miss Streak 6 | 1 5 2 3 1 4 . 2 3 5 . 2 6 Penetration Max 2 | . . . . . . . . . 1 . 1 2 Secondary Targets 69 | . . 3 3 1 2 . 2 1 2 . 5 50 Max Gunslinging Chain 3 | . . 1 1 1 1 . 1 1 1 . 1 3 Shots Hit Robots 1867 | 3 86 92 174 59 95 . 61 98 226 10 70 893 Core Hits 1056 | 2 34 55 75 32 104 . 82 97 92 4 36 443 Critical Kills 13 | . . 2 . 1 . . . . 3 . . 7 Critical Parts Destroyed 18 | . . . 2 . . . . . . . . 16 Critical Strikes 32 | . 1 2 2 1 . . . . 3 . . 23 Burn 1 | . 1 . . . . . . . . . . . Meltdown 3 | . . . . . . . . . 3 . . . Destroy 28 | . . 2 2 1 . . . . . . . 23 Melee Attacks . | . . . . . . . . . . . . . Impact . | . . . . . . . . . . . . . Slashing . | . . . . . . . . . . . . . Piercing . | . . . . . . . . . . . . . Sneak Attacks . | . . . . . . . . . . . . . Combat Hostiles . | . . . . . . . . . . . . . Follow-up Attacks . | . . . . . . . . . . . . . Damage Inflicted 50364 | 32 1200 1967 3482 1025 2775 . 2363 2225 6032 205 1764 27294 Guns 42587 | 32 1171 1405 2481 1025 1917 . 1317 2225 4613 205 1764 24432 Cannons 2160 | . . . . . 237 . 324 . 1277 . . 322 Explosions 5581 | . 29 562 1001 . 621 . 722 . 126 . . 2520 Melee . | . . . . . . . . . . . . . Ramming 36 | . . . . . . . . . 16 . . 20 Kinetic 42251 | . 867 1405 2481 1025 1917 . 1317 2225 4613 205 1764 24432 Thermal 2693 | 32 304 . 301 . 53 . 278 . 1403 . . 322 Explosive 3811 | . 29 562 700 . . . . . . . . 2520 Electromagnetic 1573 | . . . . . 805 . 768 . . . . . Impact . | . . . . . . . . . . . . . Slashing . | . . . . . . . . . . . . . Piercing . | . . . . . . . . . . . . . Highest Corruption 25 | . . . 2 . 1 . 4 . 12 . . 25 Average Corruption 6 | . . . 2 . 1 . 4 . 6 . . 9 Corruption Purged . | . . . . . . . . . . . . . Corruption Blocked . | . . . . . . . . . . . . . Effects 183 | . . . 13 . 2 . 2 . 49 . . 117 Message Errors 29 | . . . 1 . 1 . 1 . 8 . . 18 Matter Fused 34 | . . . 4 . . . . . 12 . . 18 Heat Flow Errors 21 | . . . 1 . . . . . 5 . . 15 Energy Discharges 17 | . . . 3 . . . 1 . 6 . . 7 Parts Fused 5 | . . . . . . . . . 3 . . 2 Data Loss (minor) 15 | . . . 1 . 1 . . . 6 . . 7 Data Loss (major) 10 | . . . 2 . . . . . 3 . . 5 Misfires 7 | . . . . . . . . . 1 . . 6 Alerts 4 | . . . . . . . . . 2 . . 2 Misdirections 3 | . . . . . . . . . . . . 3 Weapon Failures 38 | . . . 1 . . . . . 3 . . 34 Overload Shots . | . . . . . . . . . . . . . Overflow Damage 309 | . . 10 59 . 19 . 1 . 119 . . 101 Projectiles 95 | . . . . . 1 . 1 . 47 . . 46 Explosions 214 | . . 10 59 . 18 . . . 72 . . 55 Melee . | . . . . . . . . . . . . . Knockbacks . | . . . . . . . . . . . . . Impact . | . . . . . . . . . . . . . Kinetic . | . . . . . . . . . . . . . Secondary . | . . . . . . . . . . . . . Self-Inflicted Damage 194 | . . . . . . . . . . . . 194 Shots 5 | . . . . . . . . . . . . 5 Rammed 3 | . . . . . . . . . 2 . . 1 Targets Rammed 3 | . . . . . . . . . 2 . . 1 Kicked . | . . . . . . . . . . . . . Crushed . | . . . . . . . . . . . . . Highest Temperature 490 | 54 142 14 101 . . . 31 18 375 53 235 490 Average Temperature 69 | 29 48 7 21 . . . 29 10 64 53 89 77 Received Heat Transfer 2874 | . 177 186 756 186 318 . 183 33 54 4 100 877 Effects 5 | . . . . . . . . . 1 . . 4 Shutdowns 3 | . . . . . . . . . 1 . . 2 Interference 2 | . . . . . . . . . . . . 2 Siege Activations 40 | . . . . . . . 4 2 16 1 4 13 Total Turns 688 | . . . . . . . 45 51 216 13 112 251 Longest Duration 88 | . . . . . . . 16 33 32 13 88 87 Martial Activations . | . . . . . . . . . . . . . Shielding Activations . | . . . . . . . . . . . . . Robots Disrupted . | . . . . . . . . . . . . . Combat Hostiles . | . . . . . . . . . . . . . Robots Corrupted 8 | . . . . . 6 . 2 . . . . . Combat Hostiles 8 | . . . . . 6 . 2 . . . . . Parts Fried 12 | . . . . . 6 . 6 . . . . . Impact Corruptions . | . . . . . . . . . . . . . Robots Melted 4 | . . . . . . . . . 4 . . . Combat Hostiles 2 | . . . . . . . . . 2 . . . Parts Melted 12 | 1 . . . . . . 1 . 10 . . . Heat Transferred 2816 | 75 773 . 150 . 50 . 300 . 1209 . . 259 Parts Sabotaged 10 | . . . . . . . . . . . . 10 Parts Stolen . | . . . . . . . . . . . . . Parts Stripped . | . . . . . . . . . . . . . Power Chain Reactions 4 | . . . . . 1 . 3 . . . . . Alert | -11 -10 -9 -8 -7 -6 -5 -5 -4 -3 -2 -2 -1 ------- Run | Yrd Mat Mat Mat Fac Fac Fac DSF Fac Res Res DSF Acc Maximum Alert Level 5 | . . 1 2 1 1 . 1 . 1 . 1 5 Low Security (%) 71 | 100 100 75 17 96 97 100 67 100 84 100 76 28 Level 1 14 | . . 24 67 3 2 . 32 . 15 . 23 13 Level 2 4 | . . . 14 . . . . . . . . 16 Level 3 1 | . . . . . . . . . . . . 5 Level 4 3 | . . . . . . . . . . . . 14 Level 5 . | . . . . . . . . . . . . . High Security 4 | . . . . . . . . . . . . 20 Max Security . | . . . . . . . . . . . . . Sterilizations 3 | . . . . . . . 1 . . . 1 1 Peak Influence 3448 | 5 100 285 477 211 206 60 298 156 328 183 259 3448 Initial 183 | . . 11 109 74 97 60 3 156 19 183 30 155 Average 285 | . 29 85 303 51 115 15 130 37 90 101 149 957 Influence Increases 9588 | 5 399 696 1065 404 718 9 305 367 931 38 229 4422 Destroy 0b10 Robot/C 5880 | . 220 460 660 240 460 . 240 180 500 20 200 2700 Destroy 0b10 Robot/NC 535 | 5 60 70 65 15 15 . 25 30 75 . . 175 Destroy Leader 1250 | . 70 114 140 52 136 . 30 62 142 10 20 474 Allied During Kill 218 | . . 14 40 24 5 . . 16 2 . . 117 Successful Hack 269 | . 9 3 10 12 18 9 . 69 68 5 . 66 Disable Machine 255 | . 15 . 60 30 45 . . . 30 . . 75 Destroy Structure 600 | . 10 35 60 1 9 . 10 10 84 3 9 369 Partial Spotted 15 | . . . . . . . . . . . . 15 Lose Combat Pursuer 270 | . 15 . 30 30 30 . . . 30 . . 135 Miscellaneous 296 | . . . . . . . . . . . . 296 Influence Decreases 6290 | 5 371 463 1160 371 794 127 12 627 643 323 11 1383 Entered New Map 847 | . . 17 152 92 102 63 2 142 19 143 11 104 Time Decay 3886 | 5 371 413 518 229 532 64 . 412 503 180 . 659 Lost Part 643 | . . 13 70 10 10 . 10 . 20 . . 510 Lost Ally 290 | . . 20 120 40 . . . . . . . 110 Purge Threat 624 | . . . 300 . 150 . . 73 101 . . . Squads Dispatched 88 | . 2 2 3 3 8 . 1 6 12 1 . 50 Investigation 15 | . 1 2 1 . 2 . . 1 4 . . 4 Extermination 19 | . . . . 1 2 . . 3 5 1 . 7 Reinforcement 20 | . 1 . 2 2 3 . 1 2 3 . . 6 Assault 26 | . . . . . 1 . . . . . . 25 Garrison 8 | . . . . . . . . . . . . 8 Intercept . | . . . . . . . . . . . . . Searches Triggered . | . . . . . . . . . . . . . Construction Impeded 5 | . . . 2 . . . . 1 . . . 2 Haulers Reinforced 3 | . . . . . 1 . . . . . . 2 Active Scanning Responses . | . . . . . . . . . . . . . Cargo Convoy Interrupts 1 | . . . . . . . . . 1 . . . Stealth | -11 -10 -9 -8 -7 -6 -5 -5 -4 -3 -2 -2 -1 --------- Run | Yrd Mat Mat Mat Fac Fac Fac DSF Fac Res Res DSF Acc Distress Signals 20 | . 3 3 6 1 1 . . . 3 . . 3 Communications Jammed 33 | . . . . . . . . . 25 . 3 5 Distress Signals 24 | . . . . . . . . . 23 . . 1 Times Spotted 436 | . 19 38 38 16 29 . 12 11 41 1 9 222 Peak Tracking Total 21 | . 4 6 7 4 5 . 5 2 4 1 4 21 Tactical Retreats 16 | . 1 . 2 1 2 . . . 2 . . 8 Traps | -11 -10 -9 -8 -7 -6 -5 -5 -4 -3 -2 -2 -1 ------- Run | Yrd Mat Mat Mat Fac Fac Fac DSF Fac Res Res DSF Acc Traps Triggered 12 | . 1 2 1 . 3 . . 2 2 . 1 . Indirectly 3 | . . . . . 1 . . 2 . . . . Trap Hack Attempts . | . . . . . . . . . . . . . Triggered . | . . . . . . . . . . . . . Disarmed . | . . . . . . . . . . . . . Reprogrammed . | . . . . . . . . . . . . . Reused . | . . . . . . . . . . . . . Traps Extracted . | . . . . . . . . . . . . . Installed . | . . . . . . . . . . . . . Triggered . | . . . . . . . . . . . . . Most Traps Carried 2 | . . . . . . . . . 2 . . . Machines | -11 -10 -9 -8 -7 -6 -5 -5 -4 -3 -2 -2 -1 ---------- Run | Yrd Mat Mat Mat Fac Fac Fac DSF Fac Res Res DSF Acc Machines Disabled 19 | . 1 1 4 2 3 . 1 . 2 . . 5 Max in Single Turn 1 | . 1 1 1 1 1 . 1 . 1 . . 1 Garrison Access 2 | . . . . . . . . 1 . . . 1 Machines Repaired . | . . . . . . . . . . . . . Machines Dismantled . | . . . . . . . . . . . . . Machines Sabotaged . | . . . . . . . . . . . . . Overloaded Fab Kills . | . . . . . . . . . . . . . Hacking | -11 -10 -9 -8 -7 -6 -5 -5 -4 -3 -2 -2 -1 --------- Run | Yrd Mat Mat Mat Fac Fac Fac DSF Fac Res Res DSF Acc Machines Accessed 66 | . 10 4 4 6 6 3 . 12 6 4 . 11 Terminals 44 | . 7 2 3 3 5 2 . 7 4 3 . 8 Fabricators 3 | . . . . . . 1 . 1 1 . . . Repair Stations 4 | . 1 1 . . . . . 2 . . . . Recycling Units 5 | . 2 . . 1 1 . . 1 . . . . Scanalyzers 7 | . . 1 1 2 . . . . . 1 . 2 Garrison Access 3 | . . . . . . . . 1 1 . . 1 Total Hacks 148 | . 18 12 13 10 16 5 . 31 15 6 . 22 Successful 68 | . 5 8 9 6 4 3 . 19 8 1 . 5 Failed 79 | . 12 4 4 4 12 2 . 12 7 5 . 17 Catastrophic 14 | . 2 1 . . 2 . . 3 3 1 . 2 Database Lockouts 1 | . 1 . . . . . . . . . . . Manual 52 | . 10 2 2 3 10 . . 13 1 2 . 9 Terminals 101 | . 12 3 11 6 14 4 . 20 10 4 . 17 Fabricators 7 | . . . . . . 1 . 2 4 . . . Repair Stations 14 | . 2 6 . . . . . 6 . . . . Recycling Units 8 | . 4 . . 1 2 . . 1 . . . . Scanalyzers 14 | . . 3 2 3 . . . . . 2 . 4 Garrison Access 4 | . . . . . . . . 2 1 . . 1 Terminal Hacks 25 | . 1 1 5 2 2 2 . 7 3 1 . 1 Part Schematic 3 | . 1 . . . . . . 1 1 . . . Prototype ID Bank 1 | . . . . 1 . . . . . . . . Open DSF 4 | . . . . . 1 1 . 1 . 1 . . Level Access Points 1 | . . . . 1 . . . . . . . . Branch Access Points 1 | . . . . . . . . . . . . 1 Terminal Index 3 | . . . . . . . . 2 1 . . . Alert Level 1 | . . . 1 . . . . . . . . . Unreport Threat 5 | . . . 2 . 1 . . 1 1 . . . Locate Traps 4 | . . . 1 . . 1 . 2 . . . . Zone Layout 2 | . . 1 1 . . . . . . . . . Fabricator Hacks 7 | . . . . . . 1 . 2 4 . . . Network Status 1 | . . . . . . 1 . . . . . . Load Schematic 3 | . . . . . . . . 1 2 . . . Build 3 | . . . . . . . . 1 2 . . . Repair Station Hacks 12 | . 2 4 . . . . . 6 . . . . Scan Component 6 | . 1 2 . . . . . 3 . . . . Repair 6 | . 1 2 . . . . . 3 . . . . Recycling Unit Hacks 3 | . 1 . . 1 1 . . . . . . . Retrieve Components 3 | . 1 . . 1 1 . . . . . . . Scanalyzer 9 | . . 3 2 2 . . . . . . . 2 Insert Component 1 | . . . . . . . . . . . . 1 Retrieve Study 8 | . . 3 2 2 . . . . . . . 1 Garrison Access Hacks 2 | . . . . . . . . 1 . . . 1 Seal Access 2 | . . . . . . . . 1 . . . 1 Unauthorized Hacks 10 | . 1 . 2 1 1 . . 3 1 . . 1 Terminals 10 | . 1 . 2 1 1 . . 3 1 . . 1 Assimilate 1 | . . . 1 . . . . . . . . . Botnet 8 | . 1 . . 1 1 . . 3 1 . . 1 Skim 1 | . . . 1 . . . . . . . . . Fabricators . | . . . . . . . . . . . . . Repair Stations . | . . . . . . . . . . . . . Recycling Units . | . . . . . . . . . . . . . Scanalyzers . | . . . . . . . . . . . . . Garrison Access . | . . . . . . . . . . . . . Data Cores Recovered 1 | . . . . . . . . 1 . . . . Used 1 | . . . . . . . . 1 . . . . Hacking Detections 54 | . 9 2 2 5 5 1 . 10 6 4 . 10 Full Trace Events 10 | . 1 . . . 2 . . 1 2 . . 4 Feedback Events 2 | . . . . . . . . . 1 . . 1 Corruption 2 | . . . . . . . . . 1 . . 1 Feedback Blocked . | . . . . . . . . . . . . . Robot Schematics Acquired . | . . . . . . . . . . . . . Robots Built . | . . . . . . . . . . . . . Authchips . | . . . . . . . . . . . . . Time . | . . . . . . . . . . . . . Total Robot Build Rating . | . . . . . . . . . . . . . Part Schematics Acquired 3 | . 1 . . . . . . 1 1 . . . Parts Built 5 | . . . . . . . . 2 3 . . . Authchips . | . . . . . . . . . . . . . Time 175 | . . . . . . . . 42 133 . . . Total Part Build Rating 33 | . . . . . . . . 8 25 . . . Part Studies Acquired 8 | . . 3 2 2 . . . . . . . 1 Parts Repaired 6 | . 1 2 . . . . . 3 . . . . Time 215 | . 26 58 . . . . . 131 . . . . Parts Recycled . | . . . . . . . . . . . . . Recycled Matter . | . . . . . . . . . . . . . Retrieved Matter . | . . . . . . . . . . . . . Retrieved Components 5 | . . . . 2 3 . . . . . . . Parts Scanalyzed . | . . . . . . . . . . . . . Part Schematics Acquired . | . . . . . . . . . . . . . Parts Damaged . | . . . . . . . . . . . . . Bothacking | -11 -10 -9 -8 -7 -6 -5 -5 -4 -3 -2 -2 -1 ------------ Run | Yrd Mat Mat Mat Fac Fac Fac DSF Fac Res Res DSF Acc Used RIF Installer . | . . . . . . . . . . . . . Robots Hacked . | . . . . . . . . . . . . . Non-combat . | . . . . . . . . . . . . . Combat . | . . . . . . . . . . . . . Robot Hacks Applied . | . . . . . . . . . . . . . Relay Couplers Released . | . . . . . . . . . . . . . Fabnet Peak Effective % . | . . . . . . . . . . . . . Robots Rewired . | . . . . . . . . . . . . . Allies Hacked 4 | . . . . . . . . . 3 . . 1 Hacks Repelled . | . . . . . . . . . . . . . Allies | -11 -10 -9 -8 -7 -6 -5 -5 -4 -3 -2 -2 -1 -------- Run | Yrd Mat Mat Mat Fac Fac Fac DSF Fac Res Res DSF Acc Total Allies 24 | . . 3 6 3 . . . 6 . . . 6 Largest Group 5 | . . 3 5 4 1 . . 4 4 . . 5 Highest-Rated Group 423 | . . 45 105 130 42 . . 192 192 . . 423 Highest-Rated Ally 183 | . . 15 21 40 42 . . 183 48 . . 119 Initial Warlord ECA Mod 16 | . . . . . . . . 9 8 7 7 16 Total Orders 8 | . . . 3 2 . . . . . . . 3 STAY 3 | . . . 2 1 . . . . . . . . FOLLOW 2 | . . . 1 1 . . . . . . . . EXPLORE 2 | . . . . . . . . . . . . 2 RETURN 1 | . . . . . . . . . . . . 1 Ally Attacks 167 | . . 8 68 19 14 . . 17 5 . . 36 Total Damage 4211 | . . 182 1285 509 513 . . 450 153 . . 1119 Kills 30 | . . 4 9 4 3 . . 1 . . . 9 Allies Corrupted 3 | . . . . . . . . . 3 . . . Allies Melted 2 | . . . 2 . . . . . . . . . X0-1V1 Amusement Gains 241 | . 18 10 5 5 40 . 5 . 73 . . 85 Good Acts 96 | . . 4 10 1 7 1 3 9 21 1 5 34 Bad Acts 40 | . 1 3 4 1 3 . . 2 9 . 1 16 Intel | -11 -10 -9 -8 -7 -6 -5 -5 -4 -3 -2 -2 -1 ------- Run | Yrd Mat Mat Mat Fac Fac Fac DSF Fac Res Res DSF Acc Active Infowar (turns) 11991 | . 74 . . 946 1805 278 406 1912 2174 368 483 3545 Optics 10970 | . . . . . 1804 278 406 1912 2174 368 483 3545 Seismic 8775 | . 74 . . 946 1417 278 1 1561 1784 368 283 2063 Jamming 6143 | . . . . . . . . 648 1977 367 480 2671 ECM 1 | . . . . . . . 1 . . . . . Robot Analysis Total . | . . . . . . . . . . . . . Derelict Logs Recovered . | . . . . . . . . . . . . . Drone Launches 4 | . . . . . . . . . . . . 4 Drone Recoveries 3 | . . . . . . . . . . . . 3 Exploration | -11 -10 -9 -8 -7 -6 -5 -5 -4 -3 -2 -2 -1 ------------- Run | Yrd Mat Mat Mat Fac Fac Fac DSF Fac Res Res DSF Acc Turns Passed 16446 | 79 1933 1071 1426 946 1805 278 406 1912 2174 368 483 3565 Spaces Moved 6990 | 38 949 451 631 495 785 152 159 922 713 197 155 1343 Core 10 | 4 . . . . . . . . . . . 6 Treads 6980 | 34 949 451 631 495 785 152 159 922 713 197 155 1337 Legs . | . . . . . . . . . . . . . Wheels . | . . . . . . . . . . . . . Hover . | . . . . . . . . . . . . . Flight . | . . . . . . . . . . . . . Fastest Speed 50 | 50 160 160 160 160 166 162 162 162 160 160 160 50 Average Speed 166 | 152 169 160 160 161 186 165 162 162 160 161 162 168 Slowest Speed 260 | 160 240 160 160 165 240 166 162 162 162 162 165 260 Overloaded Moves . | . . . . . . . . . . . . . Propulsion Burnouts . | . . . . . . . . . . . . . Robots Hopped . | . . . . . . . . . . . . . Potential Cave-ins 2 | . . . . . . . . . 2 . . . Cave-ins Triggered . | . . . . . . . . . . . . . Teleports 1 | . . . . . . . . . . . . 1 Exploration Rate (%) 40 | 4 98 47 53 15 23 9 89 24 26 6 93 43 Regions Visited 12 Branch Regions . Pre-discovered Areas . | . . . . . . . . . . . . . Known Exits Taken 6 | . . . . 1 1 1 . 1 1 1 . . Unknown Exits Taken 4 | 1 1 1 1 . . . . . . . . . Scrap Searched . | . . . . . . . . . . . . . Spaces Dug 43 | . . . . . . . . . 21 1 3 18 Terrain Destroyed 315 | . 8 35 82 . . . 5 . 45 1 11 128 Melee . | . . . . . . . . . . . . . Projectile 115 | . . . . . . . . . 38 1 11 65 AOE 194 | . 8 35 82 . . . 5 . 7 . . 57 Terrain Rammed . | . . . . . . . . . . . . . Walls Destroyed . | . . . . . . . . . . . . . Machines Disabled . | . . . . . . . . . . . . . Actions | -11 -10 -9 -8 -7 -6 -5 -5 -4 -3 -2 -2 -1 --------- Run | Yrd Mat Mat Mat Fac Fac Fac DSF Fac Res Res DSF Acc Total 10414 | 50 1153 717 891 593 1023 184 255 1256 1530 242 350 2170 Wait 1827 | 2 98 143 74 43 97 13 26 250 550 29 147 355 Move 6978 | 37 948 450 630 494 784 151 158 921 712 196 154 1343 Hop . | . . . . . . . . . . . . . Pick Up 172 | 2 13 19 28 10 14 5 9 11 21 4 3 33 Fast Attach 85 | 6 7 5 5 1 4 2 4 4 21 1 1 24 Attach 66 | . . 3 10 3 4 2 3 2 4 2 . 33 Detach 10 | . 5 . . . 2 . . . 2 . . 1 Swap 274 | . 7 12 20 6 47 2 12 18 64 3 12 71 Drop 198 | . 6 22 33 11 15 9 11 9 40 3 6 33 Fire 796 | 3 69 63 91 25 56 . 32 41 114 4 27 271 Melee . | . . . . . . . . . . . . . Ram . | . . . . . . . . . . . . . Kick . | . . . . . . . . . . . . . Crush 3 | . . . . . . . . . 2 . . 1 Escape Stasis 5 | . . . . . . . . . . . . 5 Rewire . | . . . . . . . . . . . . . Trap . | . . . . . . . . . . . . . Miscellaneous . | . . . . . . . . . . . . . Route ------- -11/Scrapyard -10/Materials (discovered 5 exits: *Mat x3 / [*Min] / [*Sub]) -9/Materials (discovered 4 exits: *Mat / [*Min x2] / [*Sto]) -8/Materials -7/Factory (discovered 5 exits: *Fac x4 / [*Low]) -6/Factory (discovered 2 exits: *Fac x2) -5/Factory -5/DSF -4/Factory (discovered 3 exits: *Res x2 / Ext) -3/Research (discovered 4 exits: *Res x2 / Arm / [*Tes]) -2/Research -2/DSF -1/Access (discovered 2 exits: Sur / Com) History --------- Turn | Location | Event 13 | -11/Scrapyard | Discovered new exit (range 14) 80 | -11/Scrapyard | Entered Materials 298 | -10/Materials | Discovered new exit (range 12) 310 | -10/Materials | Build established: Mutant 629 | -10/Materials | Repaired Lgt. Treads 741 | -10/Materials | Discovered new exit (range 14) 1271 | -10/Materials | Discovered new exit (range 16) 1577 | -10/Materials | Central database locked down 1601 | -10/Materials | Discovered new exit (range 15) 1970 | -10/Materials | Discovered new exit (range 8) 1989 | -10/Materials | Prayed at D.C.S.S. Altar Unit 2013 | -10/Materials | Entered another Materials area 2013 | -9/Materials | Evolved 2 slots: Propulsion x1, Utility x1 2016 | -9/Materials | Discovered new exit (range 15) 2018 | -9/Materials | Discovered new exit (range 13) 2104 | -9/Materials | Mass support permanently improved by X0-1V1 (+6; -200 max core) 2405 | -9/Materials | Build established: Scavenger-Mutant 2441 | -9/Materials | Discovered new exit (range 16) 2881 | -9/Materials | Repaired Lgt. Treads 2915 | -9/Materials | Repaired Autogun+ 2916 | -9/Materials | X0-1V1 sent you to a vault 3039 | -9/Materials | Discovered new exit (range 16) 3084 | -9/Materials | Entered another Materials area 3084 | -8/Materials | Accompanied by 2 allies 3084 | -8/Materials | Evolved 2 slots: Propulsion x1, Utility x1 3126 | -8/Materials | Melee accuracy permanently improved by X0-1V1 (+5%; -50 max core) 3316 | -8/Materials | Lost 4 parts (1p2n1w) 3340 | -8/Materials | Core integrity fell below 50% 3355 | -8/Materials | Weapon slot count temporarily expanded by X0-1V1 (+4) 3368 | -8/Materials | X0-1V1 sent allied H-55 Commando (x5) 3566 | -8/Materials | X0-1V1 activates XOMVISION 3811 | -8/Materials | Build established: Scavenger-Executioner 4227 | -8/Materials | Build established: Scavenger-Mutant 4236 | -8/Materials | Discovered new exit (range 10) 4279 | -8/Materials | Core integrity restored by X0-1V1 (+60) 4510 | -8/Materials | Entered Factory 4510 | -7/Factory | Accompanied by 1 ally 4510 | -7/Factory | Evolved 2 slots: Utility x1, Weapon x1 4512 | -7/Factory | Discovered new exit (range 15) 4781 | -7/Factory | Build established: Scavenger-Gunner 4893 | -7/Factory | X0-1V1 sent you to a vault 5191 | -7/Factory | Identified exit to Factory 5409 | -7/Factory | Build established: Gunner 5456 | -7/Factory | Entered another Factory area 5456 | -6/Factory | Accompanied by 1 ally 5456 | -6/Factory | Evolved 2 slots: Propulsion x1, Utility x1 5820 | -6/Factory | Build established: Scavenger-Gunner 6157 | -6/Factory | Build established: Gunner 6327 | -6/Factory | Sight range permanently improved by X0-1V1 (+1; -150 max core) 6654 | -6/Factory | Identified exit to Factory 6654 | -6/Factory | X0-1V1 revealed exit location to -5/Factory 6895 | -6/Factory | X0-1V1 revealed exit location to -5/Factory 7261 | -6/Factory | Entered another Factory area 7261 | -5/Factory | Evolved 2 slots: Propulsion x1, Utility x1 7537 | -5/Factory | Identified exit to DSF 7539 | -5/Factory | Entered DSF 7579 | -5/DSF | Weapon slot count temporarily expanded by X0-1V1 (+2) 7584 | -5/DSF | Additional patrols routed to DSF 7838 | -5/DSF | Sterilization system engaged 7858 | -5/DSF | Ambient heat levels rising (+10) 7873 | -5/DSF | Ambient heat levels rising (+10) 7874 | -5/DSF | Discovered new exit (range 15) 7888 | -5/DSF | Build established: Tank 7888 | -5/DSF | Ambient heat levels rising (+10) 7899 | -5/DSF | Found Prototype Device 7899 | -5/DSF | Identified Exp. ECM Suite 7903 | -5/DSF | Ambient heat levels rising (+10) 7918 | -5/DSF | Ambient heat levels rising (+10) 7933 | -5/DSF | Ambient heat levels rising (+10) 7945 | -5/DSF | Entered Factory 7945 | -4/Factory | Evolved 2 slots: Power x1, Utility x1 8114 | -4/Factory | Identified exit to Extension 8114 | -4/Factory | X0-1V1 revealed exit location to -4/Extension 8265 | -4/Factory | Identified exit to Research 8265 | -4/Factory | X0-1V1 revealed exit location to -3/Research 8283 | -4/Factory | Repaired Med. Reactive Plating 8347 | -4/Factory | Repaired Imp. Heavy Treads 8492 | -4/Factory | X0-1V1 sent allied H-81 Overseer (x1) 8553 | -4/Factory | X0-1V1 redirected Transport squads to designated parking area 8642 | -4/Factory | Repaired Hvy. Machine Gun 8917 | -4/Factory | X0-1V1 sent allied Cetus Guard (x1) 9170 | -4/Factory | X0-1V1 revealed exit location to -3/Research 9314 | -4/Factory | Fabricated Core Analyzer (x2) 9570 | -4/Factory | Spotted B-86 Titan 9675 | -4/Factory | Build established: Gunner 9680 | -4/Factory | X0-1V1 sent you to a vault 9857 | -4/Factory | Entered Research 9857 | -3/Research | Accompanied by 4 allies 9857 | -3/Research | Evolved 2 slots: Utility x1, Weapon x1 9915 | -3/Research | Identified exit to Research 9915 | -3/Research | X0-1V1 revealed exit location to -2/Research 10151 | -3/Research | Build established: Commander-Tank 10195 | -3/Research | Lost 3 allies 10213 | -3/Research | X0-1V1 sent you to a vault 10273 | -3/Research | Found Alien Artifact 10280 | -3/Research | Found Prototype Device 10280 | -3/Research | Identified Thermal Barrier 10290 | -3/Research | Found Prototype Device 10290 | -3/Research | Identified Exp. EM Disruption Field 10335 | -3/Research | Found Prototype Slashing Weapon 10335 | -3/Research | Identified Hvy. Scimitar of Distortion 10463 | -3/Research | Build established: Tank 10573 | -3/Research | Found Prototype Processor 10573 | -3/Research | Identified Exp. Terrain Scan Processor 10785 | -3/Research | X0-1V1 enhanced Transport squad support 10913 | -3/Research | Discovered new exit (range 8) 10931 | -3/Research | X0-1V1 foreshadows a heat wave 11088 | -3/Research | System corruption reached 10% 11094 | -3/Research | X0-1V1 redirected Transport squads to designated parking area 11110 | -3/Research | Spotted B-86 Titan 11136 | -3/Research | Ambient heat levels rising (+10) 11162 | -3/Research | X0-1V1 mutated your Utility slot to Propulsion slot 11201 | -3/Research | Identified exit to Armory 11201 | -3/Research | X0-1V1 revealed exit location to -3/Armory 11291 | -3/Research | Ambient heat levels rising (+10) 11333 | -3/Research | Cargo convoy interrupted 11358 | -3/Research | Fabricated Adv. Heavy Siege Treads? 11421 | -3/Research | Ambient heat levels falling (-10) 11574 | -3/Research | Fabricated Adv. Weapon Cycler (x2) 11607 | -3/Research | Ambient heat levels falling (-10) 11661 | -3/Research | X0-1V1 sent you into danger 11671 | -3/Research | Destroyed B-86 Titan 11967 | -3/Research | X0-1V1 revealed exit location to -2/Research 12031 | -3/Research | Entered another Research area 12031 | -2/Research | Evolved 2 slots: Utility x2 12135 | -2/Research | X0-1V1 activates XOMVISION 12397 | -2/Research | Identified exit to DSF 12399 | -2/Research | Entered DSF 12413 | -2/DSF | Identified exit to Access 12413 | -2/DSF | X0-1V1 revealed exit location to -1/Access 12454 | -2/DSF | Additional patrols routed to DSF 12772 | -2/DSF | Sterilization system engaged 12778 | -2/DSF | X0-1V1 mutated your Propulsion slot to Power slot 12792 | -2/DSF | Ambient heat levels rising (+10) 12799 | -2/DSF | Build established: Scavenger-Tank 12807 | -2/DSF | Ambient heat levels rising (+10) 12822 | -2/DSF | Ambient heat levels rising (+10) 12837 | -2/DSF | Ambient heat levels rising (+10) 12852 | -2/DSF | Ambient heat levels rising (+10) 12867 | -2/DSF | Ambient heat levels rising (+10) 12882 | -2/DSF | Ambient heat levels rising (+10) 12882 | -2/DSF | Entered Access 12882 | -1/Access | Evolved 2 slots: Weapon x2 12945 | -1/Access | X0-1V1 sent you to a vault 12950 | -1/Access | Found Prototype Device 12950 | -1/Access | Identified Exp. Actuator Array 13001 | -1/Access | Found Prototype Device 13001 | -1/Access | Identified Imp. Particle Accelerator 13170 | -1/Access | Build established: Scavenger-Executioner 13188 | -1/Access | Spotted B-99 Colossus 13339 | -1/Access | X0-1V1 vaporized surrounding terrain (radius 16) 13874 | -1/Access | Spotted B-99 Colossus 13874 | -1/Access | Spotted B-99 Colossus 13920 | -1/Access | Weapon slot count temporarily expanded by X0-1V1 (+1) 13987 | -1/Access | Identified Transdimensional Reconstructor 14055 | -1/Access | X0-1V1 redirected Transport squads to designated parking area 14178 | -1/Access | X0-1V1 activates XOMVISION 14522 | -1/Access | Destroyed 9 combat bots 14995 | -1/Access | Garrison activated, responded to threat 15047 | -1/Access | Destroyed 10 combat bots 15115 | -1/Access | System corruption reached 10% 15175 | -1/Access | X0-1V1 added 0b10 threat records associated with you (major) 15237 | -1/Access | Sensors blinded by X0-1V1 15271 | -1/Access | X0-1V1 sent you into danger 15377 | -1/Access | X0-1V1 enhanced Transport squad support 15632 | -1/Access | First assault squad dispatched 15653 | -1/Access | Lost 3 parts (2u1w) 15693 | -1/Access | Found Zero-point Reactor 15721 | -1/Access | Lost 3 parts (1p2u) 15731 | -1/Access | High security lockdown imminent 15755 | -1/Access | Warped through subspace 15770 | -1/Access | Destroyed 11 combat bots 15773 | -1/Access | Identified exit to Command 15811 | -1/Access | High security lockdown engaged 15901 | -1/Access | Spotted Executioner 15908 | -1/Access | X0-1V1 turns hostiles against one another 15932 | -1/Access | Destroyed Executioner 15939 | -1/Access | Found Prototype Processor 15939 | -1/Access | Identified Exp. Core Analyzer 15942 | -1/Access | Lost 4 parts (1p2u1w) 15965 | -1/Access | Lost 3 allies 15975 | -1/Access | Spotted Executioner 15978 | -1/Access | Weapon slot count temporarily expanded by X0-1V1 (+1) 16007 | -1/Access | Destroyed 11 combat bots 16071 | -1/Access | Identified exit to Surface 16071 | -1/Access | X0-1V1 revealed exit location to -0/Surface 16103 | -1/Access | Spotted Striker 16103 | -1/Access | Spotted Striker 16108 | -1/Access | Spotted Investigator 16111 | -1/Access | Garrison activated, responded to threat 16115 | -1/Access | Destroyed Striker 16115 | -1/Access | Destroyed Investigator 16125 | -1/Access | X0-1V1 whisked you away to safety 16191 | -1/Access | Lost 3 parts (1n2w) 16301 | -1/Access | Spotted Striker 16302 | -1/Access | Spotted Striker 16302 | -1/Access | Spotted Striker 16305 | -1/Access | Destroyed Striker 16321 | -1/Access | Destroyed Striker 16321 | -1/Access | Garrison activated, responded to threat 16333 | -1/Access | Destroyed Striker 16354 | -1/Access | Destroyed 7 combat bots 16365 | -1/Access | Sterilization system engaged 16374 | -1/Access | Lost 7 parts (1p1n3u2w) 16381 | -1/Access | Spotted Striker 16381 | -1/Access | Spotted Executioner 16390 | -1/Access | Destroyed Striker 16403 | -1/Access | Destroyed Executioner 16412 | -1/Access | Spotted Executioner 16425 | -1/Access | Spotted Striker 16435 | -1/Access | Core integrity fell below 50% 16437 | -1/Access | Released all parts (8) 16442 | -1/Access | Scanned by Researcher 16442 | -1/Access | Spotted Investigator 16443 | -1/Access | Core integrity fell below 20% 16447 | -1/Access | Destroyed by H-88 Terminator with KE Penetrator Last Messages --------------- 16443_ H-88 Terminator stasis bubble strength at 154. 16443_ Slug penetrates Wall. 16444_ Stasis bubble strength at 173. 16444_ L-61 Swordsman stasis bubble strength at 158. 16444_ Executioner stasis bubble strength at 125. 16444_ H-88 Terminator stasis bubble strength at 131. 16444_ H-88 Terminator stasis bubble strength at 177. 16445_ Stasis bubble strength at 164. 16445_ P-80 Master resets H-88 Terminator, system corruption cleaned. 16445_ L-61 Swordsman stasis bubble strength at 137. 16445_ Penetrated by Slug. 16445_ Executioner stasis bubble strength at 100. 16445_ H-88 Terminator stasis bubble strength at 108. 16445_ Penetrated by Slug. 16446_ Held in stasis. 16446_ Investigator is analyzing... 16446_ Stasis bubble strength at 155. 16446_ L-61 Swordsman stasis bubble strength at 116. 16447_ Slug penetrates Wall. 16447_ X0-1V1 chortles! Map ----- +----------------------------------------------------+ | ????????????????????????? ????? | | ????????????????????????? ? ?? | | ?????????????????????????? ? ???? | | ??????????????????????????# ? ???? | | ###########???????????????# ? ???? | | # " #??????##+####### ? #??? | | # """ #??????# # #### | | # """ #??????# !!! # | | # " #??????# !!! # #??? | | # ^ ######## !!! # ##+#### | | # + !*[# # + | | # ######%# # # | | # #???##=#= # # | | ?####+#####??#=#!/% + # | | ???# = #????#*%#%"! # #] | | ???# ==#####p#=#!###+###### #%]] | | ???#!![==/=puh[]!%/[!=!*=* ]#[!=! | | ???# !%##h!E%##![!=!!=%!!! +]!* | | ??## ##%=hh##[[!!%!![=!!!!#=! | | ??# #K*p[##[=!##[######## ! | | ??# #|h%!##*=[# ## | | ??# " #]h!*##== # ## | | ??# #!=/ ## # ## | | ??# # =% ## # ! ## | | ??### ####/#### # ######## | | ????# ## @ ## "# ####???? | | ????# ## %###########?????? | | ????# i lgg ######### | | ????#### cg% R # * # | | ???????# ### ### # # | | ???????### ###?# #?#=! # ""# | | ?????????# #???#"#?# # ""# | | ?????????# #???? ?# # ""# | | ?????????# #???? ?# # S# | | ?????????# #???? ?# # ""# | | ?????????# #???? ?#] #! ""# | | ?????????# +???? ?#= # ""# | | ?????????# ######### * # # | | ?????????#%[[ ! ! ! # + | | ?????????# [ ![ ! =##+###### | | ?????????# = !* =^ | | ?????????# =[* | | ?????????+ %^%== | | ?????????# ^=% [ | | ?????????# ^ * | | ?????????# ^ | | ?????????# | | ?????????############ ########## | | ????????????????????# # | | ?????????????????? / + * | +----------------------------------------------------+ Best States ------------- Heat Dissipation 133 Energy Generation 81 Energy Capacity 1865 Matter Stores 900 Matter Capacity 1000 Sight Range 29 Terrain Scan Density 10 ECM Strength 3 Jamming Range 16 Armor Coverage 1200 Resistance: KI 30 Resistance: TH 45 Resistance: EM 25 Weapon Cycling 30 Phase Shifting 15 Evasion (%) 55 Targeting Accuracy 6 Core Analysis 11 Recoil Reduction 7 Energy Filtering 30 Kinecelleration 40 Offensive Hacking 10 Item Schematics ----------------- Huge Storage Unit | -10/Materials | Hacked Core Analyzer | -4/Factory | Hacked Adv. Weapon Cycler | -3/Research | Hacked Robot Schematics ------------------ None Fabricated ------------ Core Analyzer | x2 | -4/Factory Adv. Heavy Siege Treads | x1 | -3/Research | Preloaded Adv. Weapon Cycler | x2 | -3/Research Repaired ---------- Lgt. Treads | 52% | -10/Materials Lgt. Treads | 32% | -9/Materials Autogun | 34% | -9/Materials Med. Reactive Plating | 35% | -4/Factory Imp. Heavy Treads | 45% | -4/Factory Hvy. Machine Gun | 18% | -4/Factory Studied --------- Autogun | -9/Materials | Hacked Grenade Launcher | -9/Materials | Hacked Hvy. Assault Rifle | -9/Materials | Hacked Rocket Launcher | -8/Materials | Hacked Lgt. Treads | -8/Materials | Hacked Hvy. Rocket Launcher | -7/Factory | Hacked Flak Gun | -7/Factory | Hacked Railgun | -1/Access | Hacked Alien Tech Used ----------------- Transdimensional Reconstructor Achievements -------------- None Challenges ------------ None Game ------ Seed HypercooledThermicLink Manual? 0 Play Time 02:02:52 Cumulative 1703.9 hours Start 2026.08.02 @ 02:23:52 End 2026.08.03 @ 03:50:20 Sessions 5 Manual Loads 0 Difficulty Rogue Special Mode None Game No. 1218 Rogue 1178 Adventurer 40 Explorer 0 Win Type - Total 225 Types 107/11/76/2/2/4/16/2/1/4 Lore% 97 Gallery% 98 Achievement% 90 Wizard Run 0 Options --------- Layout 0 ASCII 0 Keyboard 0 Movement Numpad Keybinds 0 Fullscreen 0 Font 20/Terminus Map View 76x50 Zoom Use 0% Tactical HUD 1 Map Filters NONE Filters NONE Steam 1 RUN: c8dd3e1b-199e-4cca-a9e8-71b190b7ed70